bitfinex-derivatives/quotes_SOLF0:USTF0_20250730
["timestamp","ask_amount","ask_price","bid_price","bid_amount"]
[1753879677566,5.6372,177.4,177.36,3.3]
[1753879677871,0.78,177.43,177.36,3.3]
[1753879678068,5.6369,177.41,177.36,3.3]
[1753879678266,0.78,177.43,177.36,3.3]
[1753879678659,5.6369,177.41,177.36,3.3]
[1753879678867,0.78,177.43,177.36,3.3]
[1753879679073,5.6371,177.41,177.36,3.3]
[1753879679370,0.78,177.43,177.36,3.3]
[1753879679773,0.78,177.42,177.36,3.3]
[1753879679962,0.78,177.4,177.31,4.62134487]
[1753879680166,0.78,177.4,177.38,3.02]
[1753879680662,0.78,177.39,177.32,3.02]
[1753879681073,0.78,177.39,177.31,4.62134487]
[1753879681271,0.78,177.39,177.34,3.02]
[1753879681671,4.62134487,177.37,177.27,4.62134487]
[1753879681866,0.78,177.36,177.33,3.02]
[1753879682067,0.78,177.35,177.33,3.02]
[1753879682268,5.6394,177.34,177.33,3.02]
[1753879682771,5.40134487,177.39,177.33,3.02]
[1753879682968,5.6391,177.35,177.34,3.02]
[1753879683163,0.78,177.38,177.34,3.02]
[1753879683365,0.78,177.38,177.29,4.62134487]
[1753879683366,5.6388,177.36,177.31,5.6399]
[1753879683567,0.78,177.38,177.32,3.02]
[1753879683867,5.6385,177.37,177.32,5.6397]
[1753879684071,5.6385,177.37,177.33,3.02]
[1753879684273,4.62134487,177.39,177.33,3.02]
[1753879684578,5.6385,177.36,177.33,3.02]
[1753879684870,0.78,177.38,177.29,4.62134487]
[1753879685070,5.639,177.35,177.27,4.62134487]
[1753879685268,5.40134487,177.37,177.28,3.02]
[1753879685469,0.78,177.36,177.28,3.02]
[1753879685969,5.6389,177.35,177.31,3.02]
[1753879686168,4.62134487,177.39,177.31,3.02]
[1753879686574,4.62134487,177.39,177.31,8.6601]
[1753879686881,4.62134487,177.35,177.28,3.02]
[1753879687075,0.78,177.34,177.28,3.02]
[1753879687375,5.6402,177.31,177.28,3.02]
[1753879687678,0.78,177.34,177.28,3.02]
[1753879687872,4.62134487,177.35,177.29,3.02]
[1753879688175,5.40134487,177.37,177.29,3.02]
[1753879688970,5.40134487,177.37,177.31,3.02]
[1753879689474,4.62134487,177.37,177.31,3.02]
[1753879689674,0.78,177.36,177.25,111.96134487]
[1753879689872,0.78,177.35,177.33,3.02]
[1753879690778,4.62134487,177.37,177.25,111.96134487]
[1753879691080,0.78,177.33,177.29,3.02]
[1753879691275,4.62134487,177.35,177.26,3.02]
[1753879691475,5.40134487,177.35,177.26,3.02]
[1753879691675,4.62134487,177.33,177.27,3.02]
[1753879691875,0.78,177.32,177.27,3.02]
[1753879692081,0.78,177.31,177.27,3.02]
[1753879692383,5.40134487,177.33,177.22,3.02]
[1753879692875,5.6407,177.3,177.26,3.02]
[1753879693080,5.40134487,177.33,177.26,3.02]
[1753879693674,5.40134487,177.33,177.27,3.02]
[1753879693874,5.40134487,177.35,177.27,3.02]
[1753879694575,4.62134487,177.35,177.27,3.02]
[1753879694969,5.6397,177.33,177.3,3.02]
[1753879695781,5.6398,177.32,177.3,3.02]
[1753879695976,4.62134487,177.35,177.25,4.62134487]
[1753879695977,0.78,177.33,177.28,5.6409]
[1753879696177,5.6404,177.3,177.29,3.02]
[1753879696481,5.6404,177.3,177.18,118.5882]
[1753879696482,0.78,177.3,177.24,3.02]
[1753879696670,5.6412,177.28,177.24,3.02]
[1753879696874,5.6412,177.28,177.24,5.6421]
[1753879697080,5.6412,177.28,177.25,3.02]
[1753879697573,0.78,177.3,177.26,3.02]
[1753879697772,5.40134487,177.31,177.26,3.02]
[1753879699183,5.40134487,177.34,177.27,3.02]
[1753879699373,4.62134487,177.36,177.27,3.02]
[1753879699576,4.62134487,177.36,177.28,5.6408]
[1753879699776,5.6396,177.33,177.29,3.02]
[1753879700271,5.6397,177.33,177.3,3.02]
[1753879700679,5.40134487,177.36,177.3,3.02]
[1753879700982,5.6399,177.32,177.3,3.02]
[1753879701283,0.78,177.34,177.31,3.02]
[1753879701481,5.6404,177.3,177.29,3.02]
[1753879702080,5.6409,177.29,177.26,3.02]
[1753879702282,0.78,177.31,177.26,3.02]
[1753879702483,4.62134487,177.3,177.24,3.02]
[1753879702787,0.78,177.27,177.21,3.02]
[1753879702986,0.78,177.27,177.23,3.02]
[1753879703187,5.40134487,177.3,177.23,3.02]
[1753879703679,5.6427,177.23,177.18,107.3]
[1753879704088,4.62134487,177.26,177.18,107.3]
[1753879704276,5.6431,177.22,177.19,3.02]
[1753879704887,5.6423,177.24,177.19,3.02]
[1753879705086,5.40134487,177.26,177.19,3.02]
[1753879705786,5.6429,177.23,177.21,3.02]
[1753879705982,5.6429,177.23,177.22,3.02]
[1753879709178,5.6429,177.23,177.19,5.6437]
[1753879709383,5.6434,177.21,177.2,3.31]
[1753879710780,5.643,177.22,177.21,3.31]
[1753879713886,4.62134487,177.24,177.15,4.62134487]
[1753879714083,4.62134487,177.2,177.15,3.31]
[1753879714284,4.62134487,177.2,177.1,347.52]
[1753879714589,5.6439,177.19,177.11,3.31]
[1753879715086,5.6439,177.19,177.16,5.6447]
[1753879715291,4.62134487,177.22,177.17,3.31]
[1753879715791,0.79,177.21,177.13,3.31]
[1753879716288,5.41134487,177.2,177.13,3.31]
[1753879716481,5.645,177.16,177.15,3.31]
[1753879717485,2.84054162,177.2,177.13,3.31]
[1753879717887,5.6434,177.21,177.18,5.644]
[1753879718089,2.84054162,177.24,177.19,3.31]
[1753879718391,5.6426,177.24,177.21,5.6431]
[1753879718587,2.84054162,177.29,177.21,3.31]
[1753879718890,5.64,177.32,177.29,5.6406]
[1753879719096,2.84054162,177.35,177.27,3.31]
[1753879719393,2.84054162,177.35,177.29,3.31]
[1753879719693,0.79,177.34,177.31,3.31]
[1753879719883,2.84054162,177.35,177.28,2.84054162]
[1753879720088,0.79,177.34,177.29,3.31]
[1753879720391,5.6401,177.31,177.3,3.31]
[1753879720589,0.79,177.34,177.3,3.31]
[1753879720790,5.40976648,177.37,177.3,3.31]
[1753879720992,4.39793454,177.36,177.3,3.31]
[1753879721181,5.6388,177.35,177.31,5.64]
[1753879721586,5.6388,177.35,177.32,3.31]
[1753879721782,5.6385,177.36,177.32,5.6394]
[1753879721986,126.06563745,177.38,177.33,3.31]
[1753879722288,126.06563745,177.38,177.36,5.6383]
[1753879722497,126.06563745,177.38,177.37,3.31]
[1753879722693,4.61976648,177.43,177.33,4.61976648]
[1753879722995,4.39914085,177.42,177.34,3.31]
[1753879723295,5.40976648,177.43,177.34,3.31]
[1753879723482,5.6377,177.39,177.33,4.61976648]
[1753879723782,5.6377,177.39,177.36,3.31]
[1753879723980,5.40976648,177.43,177.36,3.31]
[1753879723981,5.6379,177.38,177.36,3.31]
[1753879724184,5.6379,177.38,177.37,3.31]
[1753879724888,5.6375,177.39,177.33,4.61976648]
[1753879725089,5.6375,177.39,177.38,3.31]
[1753879729598,0.79,177.4,177.34,3.31]
[1753879730097,5.639,177.35,177.34,3.31]
[1753879730391,0.79,177.38,177.29,3.31]
[1753879730585,0.79,177.36,177.29,3.31]
[1753879731094,5.6397,177.32,177.29,3.31]
[1753879732593,5.6397,177.32,177.29,8.9505]
[1753879732794,4.61976648,177.37,177.3,3.31]
[1753879733391,5.51081167,177.42,177.3,4.61976648]
[1753879733603,5.40976648,177.4,177.31,3.31]
[1753879733894,0.79,177.39,177.31,3.31]
[1753879734094,0.79,177.39,177.31,5.6399]
[1753879734299,0.79,177.39,177.32,3.31]
[1753879734492,5.639,177.35,177.32,3.31]
[1753879734701,0.79,177.37,177.28,4.61976648]
[1753879734900,0.79,177.35,177.29,3.31]
[1753879735093,4.61976648,177.34,177.27,3.31]
[1753879735392,0.79,177.33,177.25,3.31]
[1753879735795,5.6407,177.29,177.26,3.31]
[1753879735993,0.79,177.31,177.26,3.31]
[1753879736197,5.6409,177.29,177.25,5.6417]
[1753879736400,5.6409,177.29,177.26,3.31]
[1753879736799,5.641,177.28,177.27,3.31]
[1753879737198,0.79,177.31,177.22,352.27976648]
[1753879737499,5.40976648,177.32,177.26,5.6414]
[1753879737802,0.79,177.31,177.29,3.11]
[1753879738099,5.641,177.29,177.23,3.11]
[1753879738299,0.79,177.31,177.23,3.11]
[1753879739003,5.6412,177.28,177.23,3.11]
[1753879739502,5.6412,177.28,177.24,5.642]
[1753879739701,5.6412,177.28,177.25,3.11]
[1753879740098,5.6412,177.28,177.25,5.6417]
[1753879740298,4.61976648,177.32,177.26,3.11]
[1753879740299,5.6406,177.3,177.26,3.11]
[1753879740597,4.61976648,177.36,177.31,3.11]
[1753879740797,5.40976648,177.38,177.31,3.11]
[1753879741197,5.6382,177.37,177.31,3.11]
[1753879741394,0.79,177.39,177.31,3.11]
[1753879741602,0.79,177.39,177.33,5.6392]
[1753879741802,5.6392,177.34,177.32,3.11]
[1753879742103,5.6392,177.34,177.33,3.11]
[1753879742304,5.6396,177.33,177.27,3.11]
[1753879742603,0.79,177.36,177.27,3.11]
[1753879742799,0.79,177.4,177.31,3.11]
[1753879743205,133.31501372,177.47,177.31,3.11]
[1753879743206,4.61976648,177.37,177.31,3.11]
[1753879743400,0.79,177.36,177.31,8.7498]
[1753879743596,0.79,177.36,177.31,5.6398]
[1753879743805,4.61976648,177.37,177.35,3.11]
[1753879744107,10.25786648,177.37,177.36,3.11]
[1753879744606,5.40976648,177.41,177.38,3.11]
[1753879744807,0.79,177.41,177.39,3.11]
[1753879744996,5.6374,177.4,177.32,4.61976648]
[1753879745201,4.61976648,177.43,177.32,4.61976648]
[1753879745500,5.40976648,177.43,177.32,4.61976648]
[1753879745701,0.79,177.42,177.33,3.11]
[1753879745900,5.6377,177.39,177.33,3.11]
[1753879746508,5.6378,177.38,177.33,3.11]
[1753879747006,5.6375,177.39,177.36,5.6382]
[1753879747503,4.61976648,177.43,177.21,21.57976648]
[1753879747504,5.637,177.41,177.38,8.7476]
[1753879747709,0.79,177.43,177.4,3.11]
[1753879747910,0.79,177.44,177.4,3.11]
[1753879748103,5.6367,177.42,177.4,3.11]
[1753879748303,4.61976648,177.45,177.4,3.11]
[1753879748906,5.6364,177.43,177.4,8.747]
[1753879749111,5.6364,177.43,177.41,3.11]
[1753879749304,5.6364,177.43,177.42,3.11]
[1753879749614,122.04491372,177.47,177.39,3.11]
[1753879750407,107.81,177.5,177.4,4.61976648]
[1753879750600,107.81,177.5,177.32,15.89876648]
[1753879750601,0.79,177.49,177.33,3.11]
[1753879750902,0.79,177.49,177.32,11.279]
[1753879750903,0.79,177.46,177.38,3.11]
[1753879751103,107.02,177.5,177.38,3.11]
[1753879751104,0.79,177.48,177.38,3.11]
[1753879751503,0.79,177.48,177.37,4.61976648]
[1753879751504,0.79,177.48,177.42,3.11]
[1753879751705,107.02,177.5,177.42,3.11]
[1753879751706,0.79,177.46,177.42,3.11]
[1753879751905,5.6362,177.43,177.42,3.11]
[1753879752206,0.79,177.45,177.38,3.11]
[1753879752513,0.79,177.42,177.35,4.61976648]
[1753879752706,0.79,177.44,177.36,3.11]
[1753879753005,4.61976648,177.45,177.39,5.6372]
[1753879753205,5.40976648,177.45,177.39,5.6372]
[1753879753409,0.79,177.44,177.42,3.11]
[1753879753710,5.6362,177.43,177.42,3.11]
[1753879754306,5.6359,177.44,177.37,4.61976648]
[1753879754601,0.79,177.48,177.4,3.11]
[1753879754805,4.61976648,177.49,177.4,3.11]
[1753879755109,5.40976648,177.49,177.4,3.11]
[1753879755613,5.6354,177.46,177.4,3.11]
[1753879756106,5.6354,177.46,177.43,5.636]
[1753879756407,5.6351,177.47,177.44,3.11]
[1753879757200,5.6353,177.46,177.44,3.11]
[1753879757406,4.61976648,177.49,177.44,3.11]
[1753879757613,107.02,177.5,177.44,5.6356]
[1753879757806,5.6349,177.48,177.45,3.11]
[1753879758208,5.635,177.47,177.45,5.6353]
[1753879758408,0.79,177.5,177.47,3.11]
[1753879758608,0.79,177.49,177.46,3.11]
[1753879758805,4.61976648,177.49,177.42,3.11]
[1753879759006,0.79,177.48,177.42,3.11]
[1753879759210,5.6354,177.46,177.42,3.11]
[1753879759410,4.61976648,177.49,177.42,3.11]
[1753879760110,5.635,177.47,177.42,3.11]
[1753879760816,5.635,177.47,177.45,3.11]
[1753879761011,5.635,177.47,177.46,3.11]
[1753879762117,5.6347,177.48,177.47,3.11]
[1753879762417,9.99321078,177.48,177.47,3.11]
[1753879763014,5.6351,177.47,177.44,5.6357]
[1753879763209,0.78,177.47,177.42,3.11]
[1753879763407,0.78,177.45,177.43,3.11]
[1753879763612,5.6362,177.44,177.43,3.11]
[1753879763907,0.78,177.44,177.41,3.11]
[1753879764115,4.61976648,177.45,177.39,3.11]
[1753879764313,0.78,177.43,177.39,3.11]
[1753879764506,0.78,177.44,177.37,3.11]
[1753879764706,4.3641145,177.43,177.37,3.11]
[1753879764911,5.39976648,177.47,177.41,3.11]
[1753879765111,4.36405887,177.46,177.41,3.11]
[1753879765313,4.36405887,177.45,177.41,3.11]
[1753879765518,4.36405887,177.45,177.4,4.61976648]
[1753879765716,10.12057815,177.49,177.41,3.11]
[1753879766019,0.78,177.47,177.41,3.11]
[1753879766313,0.78,177.45,177.38,3.11]
[1753879766514,4.36477708,177.44,177.38,3.11]
[1753879766818,0.78,177.47,177.4,3.11]
[1753879767119,4.61976648,177.49,177.41,4.61976648]
[1753879767120,4.3642608,177.46,177.41,4.61976648]
[1753879767307,0.78,177.49,177.42,3.03]
[1753879767512,4.36339659,177.48,177.43,5.636]
[1753879767816,4.36339659,177.47,177.43,5.636]
[1753879768019,5.6362,177.43,177.42,3.03]
[1753879768720,10.12057815,177.49,177.43,3.03]
[1753879769020,5.6356,177.45,177.43,3.03]
[1753879769420,0.78,177.47,177.43,3.03]
[1753879769613,5.1430317,177.46,177.43,3.03]
[1753879769814,5.6359,177.44,177.43,3.03]
[1753879770115,0.78,177.48,177.4,3.03]
[1753879770310,4.3623306,177.47,177.4,3.03]
[1753879770515,4.36238515,177.46,177.44,3.03]
[1753879770819,0.78,177.47,177.4,3.03]
[1753879771020,4.3624768,177.46,177.4,3.03]
[1753879771215,0.78,177.47,177.4,3.03]
[1753879771419,5.6359,177.44,177.41,5.6366]
[1753879771718,5.6359,177.44,177.42,3.03]
[1753879772318,4.61976648,177.47,177.4,3.03]
[1753879772522,4.36197018,177.46,177.4,3.03]
[1753879772718,5.6367,177.42,177.41,3.03]
[1753879773520,4.61976648,177.47,177.38,3.03]
[1753879773723,0.78,177.48,177.4,3.03]
[1753879773926,4.36161023,177.47,177.4,3.03]
[1753879774122,5.6356,177.45,177.4,3.03]
[1753879774425,5.6356,177.45,177.42,5.6362]
[1753879774618,5.6354,177.46,177.4,3.03]
[1753879775215,5.6354,177.46,177.44,3.03]
[1753879776218,5.6356,177.45,177.44,3.03]
[1753879776619,0.78,177.48,177.44,3.03]
[1753879776924,5.6352,177.47,177.46,3.03]
[1753879778322,5.6352,177.47,177.46,3.03]
[1753879778530,0.78,177.51,177.46,3.03]
[1753879779121,2.83055035,177.52,177.47,3.03]
[1753879779322,2.83055035,177.54,177.47,2.83055035]
[1753879779621,5.6342,177.5,177.48,3.03]
[1753879780328,2.83055035,177.56,177.49,3.03]
[1753879780524,4.36036293,177.55,177.5,3.03]
[1753879780722,5.6329,177.54,177.51,5.6335]
[1753879780924,5.6329,177.54,177.53,3.03]
[1753879781928,0.78,177.53,177.51,3.03]
[1753879782225,0.78,177.51,177.49,3.03]
[1753879782425,3.61055035,177.51,177.49,3.03]
[1753879782628,3.61055035,177.51,177.46,3.03]
[1753879782822,2.83055035,177.49,177.44,3.03]
[1753879783025,2.83055035,177.49,177.39,347.26]
[1753879783026,0.78,177.48,177.41,2.83055035]
[1753879783226,11.265,177.55,177.3,2.83055035]
[1753879783227,2.83055035,177.45,177.42,3.03]
[1753879783524,2.83055035,177.45,177.36,3.03]
[1753879783827,2.83055035,177.47,177.43,3.03]
[1753879784225,5.6355,177.46,177.44,3.03]
[1753879784421,2.83055035,177.47,177.44,3.03]
[1753879784618,5.6352,177.46,177.45,3.03]
[1753879785322,0.78,177.46,177.38,3.03]
[1753879785530,2.83055035,177.44,177.38,3.03]
[1753879785822,2.83055035,177.42,177.38,3.03]
[1753879786022,2.83055035,177.42,177.35,3.03]
[1753879786223,2.83055035,177.4,177.35,3.03]
[1753879786425,5.6377,177.39,177.37,3.03]
[1753879786725,2.83055035,177.4,177.33,2.83055035]
[1753879786926,5.3973075,177.39,177.31,106.88]
[1753879787119,0.78,177.38,177.36,3.03]
[1753879787327,5.6383,177.37,177.36,3.03]
[1753879787631,4.6173075,177.39,177.37,3.03]
[1753879787927,5.6382,177.37,177.34,5.6389]
[1753879788130,0.78,177.38,177.35,3.03]
[1753879788332,0.78,177.37,177.29,351.8373075]
[1753879788535,5.6389,177.35,177.31,5.6399]
[1753879788731,5.6389,177.35,177.32,3.03]
[1753879789523,5.6389,177.35,177.29,347.22]
[1753879789524,4.6173075,177.39,177.33,3.03]
[1753879789728,4.6173075,177.39,177.3,3.03]
[1753879790740,4.6173075,177.39,177.29,351.8373075]
[1753879790934,4.6173075,177.39,177.31,3.03]
[1753879791131,4.6173075,177.41,177.31,4.6173075]
[1753879791335,10.0154878,177.4,177.37,5.6379]
[1753879791535,5.6372,177.4,177.39,3.03]
[1753879791728,5.15828726,177.4,177.37,3.03]
[1753879791928,0.78,177.4,177.37,3.03]
[1753879792134,0.78,177.4,177.35,3.03]
[1753879792334,5.15837844,177.39,177.36,3.03]
[1753879792537,5.6383,177.37,177.36,3.03]
[1753879793634,0.78,177.38,177.3,3.03]
[1753879794036,4.6173075,177.39,177.3,3.03]
[1753879795344,5.638,177.38,177.35,5.6387]
[1753879795840,5.638,177.38,177.37,3.03]
[1753879796048,10.2548075,177.39,177.37,3.03]
[1753879796249,10.2548075,177.39,177.38,3.03]
[1753879796843,4.6173075,177.39,177.38,3.03]
[1753879797043,0.78,177.44,177.39,3.06]
[1753879797245,4.37495144,177.43,177.39,3.06]
[1753879797443,5.3973075,177.44,177.39,3.06]
[1753879797643,5.6367,177.42,177.39,8.6972]
[1753879797844,5.6367,177.42,177.39,5.6372]
[1753879798142,4.6173075,177.46,177.41,3.06]
[1753879798344,5.15429413,177.45,177.42,3.06]
[1753879798549,5.6364,177.43,177.35,4.6173075]
[1753879798745,4.6173075,177.46,177.37,4.6173075]
[1753879799045,4.6173075,177.46,177.42,5.6364]
[1753879799246,5.3973075,177.48,177.43,3.06]
[1753879799448,4.6173075,177.48,177.43,3.06]
[1753879799948,5.6347,177.48,177.43,3.06]
[1753879800147,5.3973075,177.5,177.43,3.06]
[1753879800346,5.6363,177.43,177.38,4.6173075]
[1753879800547,0.78,177.43,177.37,3.06]
[1753879800946,0.78,177.41,177.38,5.6377]
[1753879801152,0.78,177.41,177.39,3.06]
[1753879801354,5.6372,177.4,177.39,3.06]
[1753879801553,5.6372,177.4,177.34,111.2573075]
[1753879801554,4.6173075,177.42,177.34,106.64]
[1753879801755,0.78,177.4,177.34,106.64]
[1753879801952,5.6374,177.4,177.39,3.06]
[1753879802553,4.6173075,177.44,177.39,3.06]
[1753879802856,5.3973075,177.46,177.39,3.06]
[1753879803058,4.37410396,177.45,177.39,3.06]
[1753879803256,5.3973075,177.46,177.41,3.06]
[1753879803760,4.6173075,177.46,177.43,3.06]
[1753879803961,4.6173075,177.54,177.45,3.06]
[1753879803962,4.6173075,177.48,177.45,3.06]
[1753879804150,5.6355,177.46,177.45,3.06]
[1753879805459,5.6361,177.44,177.43,3.06]
[1753879807755,5.6357,177.45,177.43,3.06]
[1753879808157,5.6359,177.44,177.43,3.06]
[1753879808454,5.3973075,177.48,177.43,3.06]
[1753879808659,4.37402467,177.47,177.43,3.06]
[1753879808858,5.3973075,177.48,177.43,3.06]
[1753879809062,4.37404757,177.47,177.43,3.06]
[1753879809256,5.3973075,177.48,177.43,8.6962]
[1753879809450,5.6354,177.46,177.44,3.06]
[1753879809858,5.6354,177.46,177.45,3.06]
[1753879810855,5.635,177.47,177.45,3.06]
[1753879811063,4.6173075,177.51,177.45,3.06]
[1753879811361,4.37349993,177.5,177.45,8.6955]
[1753879811549,4.37349993,177.49,177.46,3.06]
[1753879811860,5.3973075,177.51,177.46,3.06]
[1753879812059,4.37329335,177.5,177.46,3.06]
[1753879812251,4.37329335,177.49,177.43,3.06]
[1753879812459,5.3973075,177.51,177.43,3.06]
[1753879812657,4.37318193,177.5,177.43,3.06]
[1753879812958,4.37318193,177.49,177.43,3.06]
[1753879813158,5.6344,177.49,177.45,5.6355]
[1753879813353,5.6344,177.49,177.46,3.06]
[1753879813949,5.6347,177.48,177.46,3.06]
[1753879814354,5.6351,177.47,177.42,3.06]
[1753879815062,5.6353,177.46,177.42,3.06]
[1753879816059,5.6351,177.47,177.42,3.06]
[1753879816260,3.61047665,177.51,177.43,2.83047665]
[1753879816460,4.37226362,177.5,177.44,3.06]
[1753879816662,3.61047665,177.51,177.44,3.06]
[1753879816960,5.635,177.47,177.46,3.06]
[1753879817355,5.6357,177.45,177.42,3.06]
[1753879817560,0.78,177.47,177.42,3.06]
[1753879817859,3.61047665,177.49,177.43,5.636]
[1753879818052,3.61047665,177.49,177.44,3.06]
[1753879818255,2.83047665,177.49,177.44,3.06]
[1753879818458,2.83047665,177.49,177.46,3.06]
[1753879818658,5.6348,177.48,177.46,3.06]
[1753879819059,3.61047665,177.49,177.45,3.06]
[1753879819362,5.6347,177.48,177.45,3.06]
[1753879819553,5.6347,177.48,177.46,3.06]
[1753879819752,5.6347,177.48,177.47,3.06]
[1753879820459,3.61047665,177.49,177.41,3.06]
[1753879820656,2.83047665,177.49,177.43,3.06]
[1753879820858,5.634,177.5,177.47,3.06]
[1753879821159,0.78,177.52,177.48,3.06]
[1753879821359,5.6339,177.51,177.48,8.6944]
[1753879821558,4.71366594,177.57,177.48,8.6944]
[1753879821559,3.61047665,177.55,177.48,3.06]
[1753879821759,4.37050159,177.54,177.48,3.06]
[1753879821963,10.00380159,177.53,177.49,5.634]
[1753879822164,3.61047665,177.55,177.5,3.06]
[1753879822365,5.14983005,177.54,177.5,3.06]
[1753879822556,0.78,177.54,177.47,3.06]
[1753879823351,6.4134,177.52,177.49,3.06]
[1753879823556,5.6334,177.52,177.49,3.06]
[1753879824158,5.6334,177.52,177.5,3.06]
[1753879824457,5.6334,177.52,177.51,3.06]
[1753879824963,0.78,177.51,177.49,3.06]
[1753879825464,5.6343,177.5,177.49,3.06]
[1753879825853,5.6343,177.5,177.39,3.06]
[1753879825854,0.78,177.5,177.39,3.06]
[1753879826059,0.78,177.46,177.39,3.06]
[1753879826262,3.61047665,177.46,177.39,3.06]
[1753879826462,5.6357,177.45,177.42,5.6363]
[1753879826664,5.6357,177.45,177.44,3.06]
[1753879827355,8.46587665,177.46,177.45,3.11]
[1753879827558,3.61047665,177.5,177.45,3.11]
[1753879827959,3.61047665,177.5,177.46,3.11]
[1753879828157,2.83047665,177.5,177.46,3.11]
[1753879828363,5.6345,177.49,177.46,8.745]
[1753879828555,2.83047665,177.5,177.43,3.11]
[1753879828755,2.83047665,177.48,177.43,3.11]
[1753879829055,0.78,177.47,177.4,2.83047665]
[1753879829259,2.83047665,177.48,177.46,3.11]
[1753879829465,3.61047665,177.48,177.46,3.11]
[1753879829860,3.61047665,177.48,177.44,3.11]
[1753879829861,0.78,177.46,177.44,3.11]
[1753879830063,0.78,177.45,177.39,3.11]
[1753879830263,0.78,177.43,177.4,3.11]
[1753879830568,0.78,177.4,177.38,3.11]
[1753879830862,2.83047665,177.44,177.36,2.83047665]
[1753879831060,2.83047665,177.44,177.37,3.11]
[1753879831459,5.6367,177.42,177.4,3.11]
[1753879831660,2.83047665,177.48,177.41,3.11]
[1753879831965,2.83047665,177.46,177.41,3.11]
[1753879832166,3.61047665,177.46,177.41,3.11]
[1753879832665,5.6361,177.44,177.42,3.11]
[1753879832966,5.6361,177.44,177.43,3.11]
[1753879833361,4.61442624,177.47,177.37,4.61442624]
[1753879833565,0.78,177.44,177.42,3.11]
[1753879834561,4.61442624,177.43,177.32,3.11]
[1753879834764,5.39442624,177.43,177.34,3.11]
[1753879834965,5.6373,177.4,177.36,5.6382]
[1753879835168,0.78,177.4,177.37,3.11]
[1753879835367,0.78,177.39,177.37,3.11]
[1753879835867,0.78,177.4,177.31,4.61442624]
[1753879836069,4.61442624,177.41,177.32,3.11]
[1753879836265,5.39442624,177.41,177.32,3.11]
[1753879836463,5.6377,177.39,177.36,5.6383]
[1753879836667,4.61442624,177.43,177.33,4.61442624]
[1753879836865,4.350549,177.42,177.34,3.11]
[1753879837070,5.6367,177.42,177.39,5.6375]
[1753879837272,5.6367,177.42,177.41,3.11]
[1753879838369,4.35160729,177.42,177.34,3.11]
[1753879838668,5.39442624,177.4,177.37,3.11]
[1753879838862,5.6378,177.38,177.37,3.11]
[1753879839267,5.6376,177.39,177.37,3.11]
[1753879839467,5.39442624,177.4,177.37,3.11]
[1753879839663,0.78,177.39,177.37,3.11]
[1753879839864,5.638,177.38,177.29,458.23442624]
[1753879840068,6.418,177.38,177.36,3.11]
[1753879840266,5.638,177.38,177.34,5.6388]
[1753879840572,5.638,177.38,177.37,3.11]
[1753879840774,5.6376,177.39,177.37,3.11]
[1753879841077,5.6376,177.39,177.29,458.23442624]